bitfinex/quotes_SOLUSD_20240625
["timestamp","ask_amount","ask_price","bid_price","bid_amount"]
[1719331578290,100.0,139.21,139.13,15.467]
[1719331578684,107.1838,139.21,139.13,15.467]
[1719331578896,7.58052638,139.22,139.13,15.467]
[1719331578897,100.0,139.19,139.13,15.467]
[1719331579422,0.17,139.18,139.13,15.467]
[1719331579994,100.0,139.17,139.13,15.467]
[1719331580320,0.17,139.16,139.13,15.467]
[1719331581300,100.0,139.15,139.08,22.9005]
[1719331581502,100.0,139.15,139.08,30.0905]
[1719331581699,0.17,139.14,139.08,30.0905]
[1719331581909,0.17,139.14,139.08,16.542]
[1719331582610,100.0,139.13,139.08,16.542]
[1719331582940,0.17,139.12,139.08,16.542]
[1719331585301,100.0,139.17,139.08,16.542]
[1719331585501,123.37,139.19,139.11,7.1881]
[1719331585813,100.0,139.15,139.1,6.1462]
[1719331586203,130.5555,139.17,139.1,6.1462]
[1719331586402,123.37,139.17,139.1,6.1462]
[1719331586617,0.17,139.16,139.1,6.1462]
[1719331586814,100.0,139.15,139.1,6.1462]
[1719331587218,0.17,139.14,139.1,6.1462]
[1719331588231,100.0,139.17,139.1,6.1462]
[1719331589327,107.58052638,139.19,139.12,7.1876]
[1719331589531,22.087,139.23,139.14,16.1316]
[1719331589532,355.2,139.21,139.14,16.1316]
[1719331589737,355.2,139.21,139.14,23.3182]
[1719331590107,100.0,139.21,139.15,7.1864]
[1719331590324,107.58052638,139.23,139.16,7.1859]
[1719331590519,107.58052638,139.23,139.15,7.1861]
[1719331591124,21.1601,139.27,139.18,7.1847]
[1719331591125,107.1808,139.26,139.18,7.1847]
[1719331591329,23.37,139.27,139.19,23.1259]
[1719331591513,362.3801,139.28,139.19,23.1259]
[1719331591828,107.1801,139.28,139.19,23.1259]
[1719331591999,7.1803,139.27,139.19,23.1259]
[1719331592196,7.1803,139.27,139.19,15.9419]
[1719331592416,100.0,139.24,139.19,15.9419]
[1719331592811,0.17,139.23,139.19,15.9419]
[1719331593925,7.3523,139.23,139.19,15.9419]
[1719331594315,0.17,139.23,139.19,15.9419]
[1719331595716,100.0,139.22,139.19,15.9419]
[1719331596032,0.17,139.21,139.19,15.9419]
[1719331597017,0.17,139.21,139.16,6.1648]
[1719331597214,100.17,139.21,139.15,15.0608]
[1719331597407,152.3538,139.21,139.15,15.0608]
[1719331597839,145.17,139.21,139.15,15.0608]
[1719331598331,107.1855,139.17,139.12,15.427]
[1719331598631,100.0,139.17,139.12,15.427]
[1719331598935,0.17,139.16,139.12,15.427]
[1719331599825,20.0,139.18,139.12,15.427]
[1719331600122,0.17,139.17,139.12,15.427]
[1719331600329,100.0,139.16,139.12,15.427]
[1719331600710,100.0,139.14,139.1,6.5202]
[1719331601036,0.17,139.13,139.1,6.5202]
[1719331601210,100.0,139.16,139.1,6.5202]
[1719331601409,20.17,139.15,139.1,6.5202]
[1719331601614,100.0,139.14,139.1,6.5202]
[1719331601808,72.3566,139.15,139.1,6.5202]
[1719331601809,0.17,139.13,139.1,6.5202]
[1719331602036,100.0,139.14,139.1,6.5202]
[1719331602237,0.17,139.13,139.09,16.2292]
[1719331602735,27.1865,139.15,139.09,16.2292]
[1719331602916,100.0,139.16,139.09,16.2292]
[1719331602917,100.0,139.19,139.09,16.2292]
[1719331603122,100.0,139.17,139.11,7.1884]
[1719331603344,100.0,139.17,139.1,7.1889]
[1719331603639,100.0,139.17,139.09,16.2292]
[1719331603816,100.0,139.15,139.09,16.2292]
[1719331604232,100.0,139.15,139.09,23.4187]
[1719331604438,100.0,139.15,139.09,16.2292]
[1719331604612,0.17,139.14,139.09,16.2292]
[1719331606316,123.37,139.17,139.09,16.2292]
[1719331606523,0.17,139.16,139.1,7.189]
[1719331608026,0.17,139.16,139.09,16.2292]
[1719331608228,106.82126685,139.21,139.14,6.3301]
[1719331608429,20.0,139.2,139.15,15.7245]
[1719331608953,100.0,139.21,139.15,22.9107]
[1719331609240,100.0,139.21,139.15,15.7245]
[1719331610222,355.2,139.24,139.15,15.7245]
[1719331610419,60.443,139.3,139.15,15.7245]
[1719331610420,100.0,139.26,139.15,15.7245]
[1719331611110,107.1808,139.26,139.15,15.7245]
[1719331611826,0.17,139.25,139.15,15.7245]
[1719331612026,100.0,139.26,139.15,15.7245]
[1719331613140,107.1809,139.26,139.15,15.7245]
[1719331613843,7.1819,139.24,139.15,15.7245]
[1719331614242,0.17,139.23,139.15,15.7245]
[1719331614543,7.1814,139.25,139.15,15.7245]
[1719331614730,0.17,139.24,139.15,15.7245]
[1719331615041,107.1799,139.28,139.15,15.7245]
[1719331615229,20.17,139.27,139.15,15.7245]
[1719331616944,27.3503,139.27,139.15,15.7245]
[1719331617244,107.1809,139.26,139.15,15.7245]
[1719331617745,0.17,139.25,139.15,15.7245]
[1719331617914,7.3513,139.25,139.15,15.7245]
[1719331619240,0.17,139.25,139.15,15.7245]
[1719331619632,100.0,139.26,139.16,6.1588]
[1719331619828,0.17,139.25,139.16,6.1588]
[1719331620433,0.17,139.26,139.16,6.1588]
[1719331620818,100.17,139.26,139.16,6.1588]
[1719331621021,100.0,139.24,139.16,6.1588]
[1719331621240,7.1814,139.25,139.16,6.1588]
[1719331621438,0.17,139.24,139.16,6.1588]
[1719331621852,20.17,139.25,139.16,6.1588]
[1719331623441,27.3514,139.25,139.16,6.1588]
[1719331623747,20.17,139.25,139.16,6.1588]
[1719331623947,0.17,139.25,139.16,6.1588]
[1719331624121,7.3514,139.25,139.16,6.1588]
[1719331624646,7.182,139.24,139.16,6.1588]
[1719331624829,0.17,139.23,139.16,6.1588]
[1719331625029,7.3525,139.23,139.16,6.1588]
[1719331625229,0.17,139.23,139.16,6.1588]
[1719331625843,100.0,139.22,139.16,6.1588]
[1719331626332,107.184,139.2,139.16,6.1588]
[1719331626539,107.184,139.2,139.15,15.7245]
[1719331626741,0.17,139.19,139.15,15.7245]
[1719331627252,100.0,139.22,139.15,15.7245]
[1719331627452,0.17,139.21,139.15,15.7245]
[1719331628133,107.1841,139.2,139.15,15.7245]
[1719331628327,0.17,139.19,139.15,15.7245]
[1719331629146,100.0,139.18,139.15,15.7245]
[1719331629338,0.17,139.17,139.15,15.7245]
[1719331630029,0.17,139.17,139.13,6.586]
[1719331630231,100.0,139.16,139.11,16.0304]
[1719331630530,0.17,139.15,139.11,16.0304]
[1719331630926,0.17,139.15,139.09,13.4616]
[1719331630927,165.17,139.15,139.09,6.2721]
[1719331631133,172.3566,139.15,139.09,6.2721]
[1719331631332,165.17,139.15,139.09,6.2721]
[1719331631551,20.17,139.15,139.09,13.4615]
[1719331631848,0.17,139.15,139.09,13.4615]
[1719331632568,0.17,139.15,139.09,6.2721]
[1719331632845,114.00576685,139.19,139.1,7.189]
[1719331633046,20.17,139.18,139.11,7.1884]
[1719331633233,27.355,139.18,139.1,7.1889]
[1719331634031,20.17,139.18,139.1,7.1889]
[1719331634327,20.17,139.18,139.11,7.1884]
[1719331634529,20.17,139.18,139.12,22.3983]
[1719331634728,0.17,139.18,139.12,15.2104]
[1719331635745,0.17,139.18,139.12,22.3982]
[1719331636359,0.17,139.18,139.12,15.2104]
[1719331637051,100.0,139.16,139.12,15.2104]
[1719331637345,7.3569,139.15,139.12,15.2104]
[1719331637567,100.0,139.14,139.12,15.2104]
[1719331637927,0.17,139.13,139.12,15.2104]
[1719331638960,100.17,139.13,139.09,6.2721]
[1719331639144,100.17,139.13,139.08,16.293]
[1719331639571,107.3578,139.13,139.08,16.293]
[1719331640455,100.17,139.13,139.08,16.293]
[1719331640657,0.17,139.13,139.08,16.293]
[1719331640865,20.0,139.14,139.08,16.293]
[1719331641653,100.0,139.12,139.07,0.8646533]
[1719331642188,7.3586,139.11,139.07,0.8646533]
[1719331642354,100.0,139.1,139.07,0.8646533]
[1719331642750,0.17,139.09,139.07,0.8646533]
[1719331647594,7.1887,139.11,139.07,0.8646533]
[1719331647885,0.17,139.1,139.07,0.8646533]
[1719331648399,100.17,139.1,139.07,0.8646533]
[1719331648888,0.17,139.1,139.07,0.8646533]
[1719331649453,100.0,139.12,139.07,0.8646533]
[1719331649662,20.0,139.11,139.07,0.8646533]
[1719331650658,27.1885,139.11,139.07,0.8646533]
[1719331650858,100.17,139.1,139.07,0.8646533]
[1719331651057,107.3591,139.1,139.07,0.8646533]
[1719331652276,100.17,139.1,139.07,0.8646533]
[1719331652785,100.0,139.08,139.07,0.8646533]
[1719331653090,107.1901,139.08,139.07,0.8646533]
[1719331653297,107.3601,139.08,139.07,0.8646533]
[1719331653460,100.17,139.08,139.07,0.8646533]
[1719331653660,150.7301,139.08,139.07,0.8646533]
[1719331655091,120.17,139.08,139.07,0.8646533]
[1719331655408,165.17,139.08,139.07,0.8646533]
[1719331655773,172.3601,139.08,139.07,0.8646533]
[1719331656874,165.17,139.08,139.07,0.8646533]
[1719331657710,172.3601,139.08,139.07,0.8646533]
[1719331658176,165.17,139.08,139.07,0.8646533]
[1719331658373,23.37,139.1,139.07,0.8646533]
[1719331658374,123.37,139.1,139.07,0.8646533]
[1719331658592,100.0,139.1,139.07,0.8646533]
[1719331659574,107.1881,139.12,139.07,0.8646533]
[1719331659779,20.0,139.11,139.07,0.8646533]
[1719331659986,14.00886685,139.13,139.07,0.8646533]
[1719331660194,120.0,139.12,139.07,0.8646533]
[1719331660684,20.0,139.12,139.07,0.8646533]
[1719331661281,0.17,139.11,139.07,0.8646533]
[1719331661701,6.82126685,139.13,139.07,0.8646533]
[1719331661915,6.82126685,139.13,139.07,8.0548533]
[1719331662209,6.82126685,139.13,139.08,7.1899]
[1719331665224,7.1887,139.11,139.07,0.8646533]
[1719331665388,0.17,139.1,139.07,0.8646533]
[1719331666319,107.1882,139.12,139.07,0.8646533]
[1719331666496,0.17,139.11,139.07,0.8646533]
[1719331668187,120.0,139.16,139.09,7.1894]
[1719331668512,120.0,139.16,139.08,7.1896]
[1719331668714,20.0,139.16,139.09,7.1894]
[1719331668930,20.0,139.16,139.1,7.1889]
[1719331669216,20.0,139.16,139.07,0.8646533]
[1719331669388,20.0,139.16,139.08,7.1897]
[1719331669589,27.186,139.16,139.08,7.1897]
[1719331670387,107.1866,139.15,139.07,0.8646533]
[1719331670582,107.1866,139.15,139.07,8.0550533]
[1719331671025,0.17,139.14,139.07,8.0550533]
[1719331672402,0.17,139.14,139.08,7.19]
[1719331672647,27.1861,139.16,139.08,7.19]
[1719331672907,27.1861,139.16,139.07,0.8646533]
[1719331672908,7.1851,139.18,139.1,7.189]
[1719331673099,27.1852,139.18,139.09,7.1893]
[1719331673290,20.0,139.18,139.11,7.1883]
[1719331673493,20.0,139.18,139.12,15.3829]
[1719331673698,107.1834,139.21,139.12,22.5708]
[1719331673990,20.0,139.2,139.12,15.3829]
[1719331674794,100.0,139.21,139.12,15.3829]
[1719331675117,7.1825,139.23,139.12,15.3829]
[1719331675710,7.1825,139.23,139.15,7.1863]
[1719331675905,107.1819,139.24,139.16,7.1859]
[1719331676441,7.1815,139.25,139.17,7.1854]
[1719331676751,362.3809,139.26,139.18,22.7766]
[1719331677341,7.1813,139.25,139.18,22.7766]
[1719331677744,7.182,139.24,139.18,22.7766]
[1719331678816,7.1813,139.25,139.18,22.7766]
[1719331679232,7.352,139.24,139.18,22.7766]
[1719331679538,7.1824,139.23,139.18,22.7766]
[1719331680044,0.17,139.22,139.18,22.7766]
[1719331680412,355.2,139.26,139.18,22.7766]
[1719331680613,20.17,139.25,139.18,22.7766]
[1719331680926,27.3516,139.25,139.18,22.7766]
[1719331681123,20.17,139.25,139.18,22.7766]
[1719331681439,7.1818,139.24,139.18,22.7766]
[1719331681740,20.17,139.25,139.18,22.7766]
[1719331681741,27.1815,139.25,139.18,22.7766]
[1719331681917,0.17,139.24,139.18,22.7766]
[1719331683253,7.1827,139.23,139.18,22.7766]
[1719331683436,152.182,139.24,139.18,22.7766]
[1719331683622,0.17,139.23,139.18,22.7766]
[1719331684122,7.3524,139.23,139.18,22.7766]
[1719331685847,0.17,139.23,139.18,22.7766]
[1719331686037,20.17,139.23,139.18,22.7766]
[1719331686246,20.0,139.25,139.18,22.7766]
[1719331687318,100.17,139.24,139.18,22.7766]
[1719331687660,27.1824,139.23,139.18,22.7766]
[1719331687831,0.17,139.22,139.18,22.7766]
[1719331691128,107.353,139.22,139.15,15.3739]
[1719331691319,20.0,139.21,139.15,15.3739]
[1719331691751,0.17,139.2,139.15,15.3739]
[1719331693643,20.0,139.22,139.15,15.3739]
[1719331693829,0.17,139.21,139.15,15.3739]
[1719331694551,7.3533,139.21,139.15,15.3739]
[1719331694859,20.0,139.2,139.15,15.3739]
[1719331697361,20.17,139.21,139.15,15.3739]
[1719331697677,27.3534,139.21,139.15,15.3739]
[1719331697826,100.0,139.2,139.11,23.205]
[1719331698033,100.0,139.18,139.11,23.205]
[1719331698237,20.17,139.17,139.11,23.205]
[1719331699276,27.3554,139.17,139.11,23.205]
[1719331699456,20.17,139.17,139.11,23.205]
[1719331701876,100.0,139.16,139.11,16.6315]
[1719331702171,20.0,139.15,139.11,16.6315]
[1719331702352,0.17,139.14,139.11,16.6315]
[1719331702951,0.17,139.14,139.08,29.2827]
[1719331703366,0.17,139.14,139.09,7.1895]
[1719331706377,20.0,139.15,139.08,22.0928]
[1719331706686,20.0,139.18,139.09,16.4335]
[1719331706888,20.0,139.19,139.14,7.1868]
[1719331707092,20.0,139.2,139.14,7.1868]
[1719331707381,20.0,139.2,139.15,16.4335]
[1719331707558,20.0,139.2,139.16,7.1857]
[1719331707751,20.0,139.22,139.16,7.1857]
[1719331707959,20.0,139.22,139.17,7.1852]
[1719331708971,6.82040979,139.23,139.15,16.4335]
[1719331709149,130.5515,139.25,139.15,16.4335]
[1719331709150,23.37,139.25,139.15,16.4335]
[1719331709662,38.5318,139.3,139.17,15.6685]
[1719331709663,100.0,139.29,139.17,15.6685]
[1719331710175,107.1794,139.29,139.17,15.6685]
[1719331710391,7.1798,139.28,139.17,15.6685]
[1719331711463,38.5318,139.3,139.17,15.6685]
[1719331711464,7.1811,139.26,139.17,15.6685]
[1719331712182,107.1804,139.27,139.17,15.6685]
[1719331712362,20.0,139.26,139.17,15.6685]
[1719331712561,100.0,139.24,139.17,15.6685]
[1719331712876,20.0,139.23,139.17,15.6685]
[1719331713181,0.17,139.22,139.17,15.6685]
[1719331714561,100.17,139.22,139.17,15.6685]
[1719331714767,20.0,139.21,139.17,15.6685]
[1719331715196,0.17,139.2,139.17,15.6685]
[1719331715487,0.17,139.2,139.08,23.37]
[1719331715689,100.0,139.16,139.07,0.8646533]
[1719331715869,20.17,139.15,139.07,0.8646533]
[1719331716979,20.17,139.15,139.08,7.1899]
[1719331717184,20.17,139.15,139.07,8.0550533]
[1719331717494,100.0,139.14,139.07,8.0550533]
[1719331717686,100.0,139.12,139.07,0.8646533]
[1719331717882,20.17,139.11,139.07,0.8646533]
[1719331719778,0.17,139.11,139.07,0.8646533]
[1719331719980,20.0,139.1,139.07,0.8646533]
[1719331720289,0.17,139.11,139.07,0.8646533]
[1719331720493,20.0,139.13,139.07,0.8646533]
[1719331720693,0.17,139.12,139.07,0.8646533]
[1719331721083,100.17,139.12,139.07,0.8646533]
[1719331721285,20.0,139.11,139.07,0.8646533]
[1719331721801,0.17,139.1,139.07,0.8646533]
[1719331722999,100.17,139.1,139.07,0.8646533]
[1719331723188,20.0,139.09,139.07,0.8646533]
[1719331723387,0.17,139.08,139.07,0.8646533]
[1719331729200,100.17,139.08,139.07,0.8646533]
[1719331729408,143.54,139.08,139.07,0.8646533]
[1719331730384,150.7301,139.08,139.07,0.8646533]
[1719331730583,195.7301,139.08,139.07,0.8646533]
[1719331732094,188.54,139.08,139.07,0.8646533]
[1719331732612,195.7301,139.08,139.07,0.8646533]
[1719331733493,203.33086984,139.08,139.07,0.8646533]
[1719331739431,196.14076984,139.08,139.07,0.8646533]
[1719331739634,203.33086984,139.08,139.07,0.8646533]
[1719331745136,179.96086984,139.08,139.07,0.8646533]
[1719331745330,134.96086984,139.08,139.07,0.8646533]
[1719331745537,134.79086984,139.08,139.07,0.8646533]
[1719331746739,107.60076984,139.08,139.07,0.8646533]
[1719331747034,21.5501,139.12,139.07,0.8646533]
[1719331747035,100.0,139.1,139.07,0.8646533]
[1719331747426,130.5584,139.12,139.07,0.8646533]
[1719331747769,100.0,139.1,139.07,0.8646533]
[1719331748129,107.1891,139.1,139.07,0.8646533]
[1719331748349,20.0,139.09,139.07,0.8646533]
[1719331748846,0.17,139.08,139.07,0.8646533]
[1719331750735,20.17,139.08,139.07,0.8646533]
[1719331751640,127.3601,139.08,139.07,0.8646533]
[1719331752127,120.17,139.08,139.07,0.8646533]
[1719331752546,127.3601,139.08,139.07,0.8646533]
[1719331752748,172.3601,139.08,139.07,0.8646533]
[1719331753525,179.23864762,139.08,139.07,0.8646533]
[1719331757346,239.06764762,139.08,139.07,0.8646533]
[1719331757842,107.1932,139.02,139.01,2.32559191]
[1719331758046,127.1932,139.02,139.01,2.32559191]
[1719331758264,127.3632,139.02,139.01,2.32559191]
[1719331758623,150.7332,139.02,139.01,2.32559191]
[1719331759540,238.9432,139.02,139.01,2.32559191]
[1719331759740,238.9432,139.02,138.94,15.8404]
[1719331759741,100.0,138.97,138.94,15.8404]
[1719331760054,20.0,138.96,138.94,15.8404]
[1719331760440,20.0,138.98,138.94,15.8404]
[1719331760648,0.17,138.97,138.94,15.8404]
[1719331761157,100.17,138.97,138.94,15.8404]
[1719331761452,100.0,138.95,138.94,15.8404]
[1719331761656,100.0,138.95,138.93,0.8646533]
[1719331761657,120.0,138.95,138.93,0.8646533]
[1719331761867,20.17,138.94,138.93,0.8646533]
[1719331762661,27.3673,138.94,138.93,0.8646533]
[1719331762877,20.17,138.94,138.93,0.8646533]
[1719331763359,27.3673,138.94,138.93,0.8646533]
[1719331763662,72.3673,138.94,138.93,0.8646533]
[1719331764162,27.3673,138.94,138.93,0.8646533]
[1719331764740,72.3673,138.94,138.93,0.8646533]
[1719331766280,79.24584762,138.94,138.93,0.8646533]
[1719331766449,134.07584762,138.94,138.93,0.8646533]
[1719331766643,126.87854762,138.94,138.93,0.8646533]
[1719331767469,134.07584762,138.94,138.93,0.8646533]
[1719331768550,179.24584762,138.94,138.93,0.8646533]
[1719331773245,222.45584762,138.94,138.93,0.8646533]
[1719331773447,222.45584762,138.94,138.93,5.33e-05]
[1719331773772,222.45584762,138.94,138.92,0.04265352]
[1719331773773,68.4024,138.93,138.92,6.82e-06]
[1719331773953,140.28094762,138.93,138.92,6.82e-06]
[1719331774281,140.45094762,138.93,138.92,6.82e-06]
[1719331775683,146.37683606,138.93,138.92,6.82e-06]
[1719331776058,100.0,138.85,138.84,0.41104312]
[1719331776368,127.372,138.85,138.84,0.41104312]
[1719331777047,120.17,138.85,138.84,0.41104312]
[1719331777467,172.372,138.85,138.84,0.41104312]
[1719331778171,222.84765873,138.85,138.84,0.41104312]
[1719331781255,228.77354717,138.85,138.84,0.41104312]
[1719331783972,185.56354717,138.85,138.84,0.41104312]
[1719331784182,140.39354717,138.85,138.84,0.41104312]
[1719331786200,185.56354717,138.85,138.84,0.41104312]
[1719331786375,140.39354717,138.85,138.84,0.41104312]
[1719331786702,134.46765873,138.85,138.84,0.41104312]
[1719331786904,114.46765873,138.85,138.84,0.41104312]
[1719331788203,134.46765873,138.85,138.84,0.41104312]
[1719331788495,134.63765873,138.85,138.84,0.41104312]
[1719331789611,120.0,138.85,138.84,0.41104312]
[1719331790972,20.0,138.85,138.84,0.41104312]
[1719331791280,130.63565873,138.89,138.84,0.41104312]
[1719331791887,137.83555873,138.89,138.84,0.41104312]
[1719331792266,130.63565873,138.89,138.84,0.41104312]
[1719331793389,20.0,138.88,138.84,0.41104312]
[1719331795099,100.0,138.87,138.84,0.41104312]
[1719331795399,20.0,138.86,138.84,0.41104312]
[1719331796578,20.0,138.88,138.84,0.41104312]
[1719331796786,20.0,138.9,138.85,22.9468]
[1719331797084,20.0,138.92,138.85,22.9468]
[1719331797266,100.0,138.91,138.85,30.1487]
[1719331797473,20.0,138.9,138.85,22.9468]
[1719331798498,0.17,138.89,138.85,22.9468]
[1719331799906,20.0,138.9,138.85,30.1483]
[1719331800200,20.0,138.92,138.85,30.1486]
[1719331800410,20.0,138.92,138.85,30.1485]
[1719331800783,107.199,138.91,138.85,22.9468]
[1719331801194,7.3695,138.9,138.85,22.9468]
[1719331801399,20.0,138.89,138.85,22.9468]
[1719331801784,20.0,138.89,138.85,30.1485]
[1719331802003,20.0,138.9,138.86,7.2013]
[1719331802383,20.0,138.92,138.86,7.2013]
[1719331802586,20.0,138.92,138.85,30.1486]
[1719331802906,27.1985,138.92,138.85,22.9468]
[1719331803289,107.1989,138.91,138.85,22.9468]
[1719331803495,20.17,138.9,138.85,22.9468]
[1719331804391,20.0,138.89,138.85,22.9468]
[1719331804702,0.17,138.9,138.85,22.9468]
[1719331805401,20.0,138.91,138.85,22.9468]
[1719331805900,120.0,138.91,138.85,22.9468]
[1719331806105,7.1997,138.9,138.85,22.9468]
[1719331806293,20.0,138.89,138.85,22.9468]
[1719331807585,100.0,138.9,138.85,22.9468]
[1719331807835,20.0,138.89,138.85,22.9468]
[1719331808181,20.0,138.89,138.85,30.1487]
[1719331808508,20.17,138.91,138.85,22.9468]
[1719331809015,27.369,138.91,138.85,22.9468]
[1719331809779,20.17,138.91,138.85,22.9468]
[1719331809980,100.0,138.9,138.85,22.9468]
[1719331810181,20.0,138.89,138.85,22.9468]
[1719331810425,27.2,138.89,138.85,22.9468]
[1719331810581,20.0,138.89,138.85,22.9468]
[1719331810982,20.0,138.89,138.85,16.6084]
[1719331811200,100.0,138.88,138.84,0.41104312]
[1719331811412,20.0,138.87,138.84,0.41104312]
[1719331812484,100.0,138.86,138.84,0.41104312]
[1719331812684,20.0,138.85,138.84,0.41104312]
[1719331813410,27.372,138.85,138.84,0.41104312]
[1719331813716,20.17,138.85,138.84,0.41104312]
[1719331813891,20.0,138.85,138.84,0.41104312]
[1719331814406,27.202,138.85,138.84,0.41104312]
[1719331815410,127.202,138.85,138.84,0.41104312]
[1719331815705,27.372,138.85,138.84,0.41104312]
[1719331815893,7.26565873,138.89,138.84,0.41104312]
[1719331816205,100.0,138.91,138.85,6.2923]
[1719331816510,7.2006,138.88,138.85,6.2923]
[1719331816701,7.2014,138.86,138.85,6.2923]
[1719331816897,7.2016,138.86,138.84,0.41104312]
[1719331817308,100.0,138.88,138.84,0.41104312]
[1719331817309,7.201,138.87,138.84,0.41104312]
[1719331817483,20.0,138.86,138.84,0.41104312]
[1719331818083,20.0,138.88,138.84,0.41104312]
[1719331818483,27.2006,138.88,138.84,0.41104312]
[1719331818889,120.0,138.88,138.84,0.41104312]
[1719331819318,0.17,138.87,138.84,0.41104312]
[1719331819627,7.2018,138.86,138.84,0.41104312]
[1719331819801,20.0,138.85,138.84,0.41104312]
[1719331820716,27.202,138.85,138.84,0.41104312]
[1719331821916,20.0,138.85,138.84,0.41104312]
[1719331823209,27.202,138.85,138.84,0.41104312]
[1719331823418,27.372,138.85,138.84,0.41104312]
[1719331825343,27.202,138.85,138.84,0.41104312]
[1719331827752,20.0,138.85,138.84,0.41104312]
[1719331828452,107.26565873,138.9,138.84,0.41104312]
[1719331828453,7.2005,138.88,138.84,0.41104312]
[1719331828625,5.92588844,138.93,138.85,5.6861]
[1719331828830,20.0,138.92,138.87,15.9802]
[1719331829160,7.85,138.91,138.87,15.9802]
[1719331829361,15.0494,138.9,138.87,15.9802]
[1719331829942,7.85,138.89,138.87,15.9802]
[1719331830146,7.85,138.9,138.87,15.9802]
[1719331830563,7.85,138.89,138.87,15.9802]
[1719331830730,100.0,138.92,138.87,15.9802]
[1719331830929,27.199,138.91,138.87,15.9802]
[1719331831530,7.1994,138.9,138.87,15.9802]
[1719331831954,27.1989,138.91,138.87,15.9802]
[1719331834469,20.0,138.91,138.87,15.9802]
[1719331834675,7.1985,138.92,138.87,15.9802]
[1719331834856,20.0,138.91,138.87,15.9802]
[1719331835335,20.0,138.92,138.87,15.9802]
[1719331835534,27.1984,138.92,138.87,15.9802]
[1719331837467,20.0,138.92,138.87,15.9802]
[1719331837675,27.1976,138.94,138.87,15.9802]
[1719331838571,20.0,138.94,138.88,7.2001]
[1719331838741,107.1968,138.96,138.88,7.2001]
[1719331838947,107.1968,138.96,138.89,7.1999]
[1719331839160,7.1968,138.96,138.88,7.2003]
[1719331839767,7.1969,138.95,138.87,23.181]
[1719331840376,27.1973,138.94,138.87,15.9802]
[1719331841679,27.1973,138.94,138.87,23.1811]
[1719331842184,7.1979,138.93,138.87,15.9802]
[1719331842350,7.1993,138.91,138.87,15.9802]
[1719331842958,20.0,138.9,138.85,5.6861]
[1719331843370,7.1995,138.9,138.85,5.6861]
[1719331843658,20.0,138.89,138.85,5.6861]
[1719331844274,7.2004,138.88,138.84,0.41104312]
[1719331844501,20.0,138.87,138.84,0.41104312]
[1719331846271,27.201,138.87,138.84,0.41104312]
[1719331847284,7.2015,138.86,138.84,0.41104312]
[1719331847488,20.0,138.85,138.84,0.41104312]
[1719331847861,27.202,138.85,138.84,0.41104312]
[1719331848172,20.0,138.85,138.84,0.41104312]
[1719331849289,27.202,138.85,138.84,0.41104312]
[1719331849860,27.372,138.85,138.84,0.41104312]
[1719331853487,20.0,138.85,138.84,0.41104312]
[1719331856079,27.202,138.85,138.84,0.41104312]
[1719331856903,27.372,138.85,138.84,0.41104312]
[1719331857194,27.202,138.85,138.84,0.41104312]
[1719331858200,20.0,138.85,138.84,0.41104312]
[1719331859004,7.26565873,138.89,138.84,0.41104312]
[1719331859183,100.0,138.92,138.84,0.41104312]